bitfinex-derivatives/quotes_BNBF0:USTF0_20250221
["timestamp","ask_amount","ask_price","bid_price","bid_amount"]
[1740154520129,0.30190957,662.45,661.18,1.09662024]
[1740154520130,0.27756423,662.42,661.18,1.09662024]
[1740154520331,0.27756423,662.44,661.21,1.09662024]
[1740154520529,0.27756423,662.43,661.21,1.09662024]
[1740154520836,0.27756423,662.42,661.21,1.09662024]
[1740154521042,0.27766177,662.41,661.21,1.09662024]
[1740154521329,0.27766177,662.4,661.21,1.09662024]
[1740154521528,0.27766177,662.44,661.21,1.09662024]
[1740154521733,0.27766177,662.43,661.21,1.09662024]
[1740154522034,1.41266177,662.42,661.21,1.09662024]
[1740154522236,0.27766177,662.41,661.21,1.09662024]
[1740154523535,0.27766177,662.41,661.04,1.09662024]
[1740154524231,1.43655427,662.4,661.04,1.09662024]
[1740154524532,0.27766177,662.39,661.04,1.09662024]
[1740154525331,0.27766177,662.38,661.04,1.09662024]
[1740154525531,0.3019506,662.36,661.04,1.09662024]
[1740154525937,0.27766177,662.35,661.04,1.09662024]
[1740154526137,0.27766177,662.34,661.04,1.09662024]
[1740154526332,0.27766177,662.33,661.04,1.09662024]
[1740154526535,0.27766177,662.35,661.04,1.09662024]
[1740154526841,1.43835931,662.34,661.11,1.09662024]
[1740154527036,1.43835931,662.33,661.11,1.09662024]
[1740154527235,1.43835931,662.32,661.11,1.09662024]
[1740154527440,0.27766177,662.31,661.11,1.09662024]
[1740154527636,0.27766177,662.35,661.11,1.09662024]
[1740154527840,1.43889813,662.34,661.11,1.09662024]
[1740154528038,0.3019506,662.36,661.11,1.09662024]
[1740154528039,0.27766177,662.33,661.11,1.09662024]
[1740154528333,0.27766177,662.32,661.11,1.09662024]
[1740154528539,0.27766177,662.35,661.11,1.09662024]
[1740154528736,0.27766177,662.34,661.11,1.09662024]
[1740154528934,0.27766177,662.35,661.11,1.09662024]
[1740154529140,0.27766177,662.34,661.11,1.09662024]
[1740154529440,0.30196883,662.32,661.11,1.09662024]
[1740154529635,0.27766177,662.31,661.11,1.09662024]
[1740154529845,0.30198251,662.29,661.11,1.09662024]
[1740154530238,0.27756505,662.28,660.96,1.09662024]
[1740154530438,0.30198251,662.29,660.96,1.09662024]
[1740154532644,0.30198251,662.29,661.18,1.09662024]
[1740154535142,0.30198251,662.29,661.23,1.09662024]
[1740154538245,0.30198251,662.29,661.86,1.09662024]
[1740154538850,0.30198251,662.29,661.87,1.289]
[1740154549868,0.27755729,662.28,661.87,1.289]
[1740154550163,0.30199163,662.27,661.87,1.289]
[1740154551462,0.27759318,662.26,661.87,1.289]
[1740154551666,0.30200075,662.25,661.87,1.289]
[1740154554973,0.30200075,662.25,661.45,1.09662024]
[1740154557073,0.30200075,662.25,653.89,8.8767563]
[1740154557074,0.30200075,662.25,661.3,1.09662024]
[1740154558475,0.2776305,662.24,661.3,1.09662024]
[1740154559774,0.2776305,662.24,661.1,1.09662024]
[1740154562374,0.2776305,662.23,661.1,1.09662024]
[1740154562573,0.2776305,662.22,661.1,1.09662024]
[1740154562775,0.30200075,662.25,661.1,1.09662024]
[1740154562776,0.2776305,662.21,661.1,1.09662024]
[1740154562976,0.2776305,662.2,661.1,1.09662024]
[1740154563275,0.30200075,662.25,661.15,1.09662024]
[1740154563276,0.2776305,662.19,661.15,1.09662024]
[1740154563476,0.2776305,662.18,661.15,1.09662024]
[1740154563774,0.30200075,662.25,661.15,1.09662024]
[1740154563775,0.2776305,662.17,661.15,1.09662024]
[1740154564279,0.30200075,662.25,661.15,1.09662024]
[1740154564280,0.2776305,662.16,661.15,1.09662024]
[1740154564479,0.2776305,662.24,661.15,1.09662024]
[1740154564679,0.2776305,662.23,661.15,1.09662024]
[1740154564875,0.2776305,662.22,661.15,1.09662024]
[1740154565073,0.30202355,662.2,661.15,1.09662024]
[1740154565276,0.2776305,662.19,661.15,1.09662024]
[1740154565780,0.30203724,662.17,661.15,1.09662024]
[1740154565972,0.2776305,662.16,661.15,1.09662024]
[1740154566174,0.30205092,662.14,661.15,1.09662024]
[1740154566379,0.27784531,662.13,661.15,1.09662024]
[1740154566580,0.27784531,662.13,660.53,2.29186833]
[1740154566581,0.27784531,662.13,660.68,1.09662024]
[1740154567681,0.2778545,662.12,660.68,1.09662024]
[1740154567982,0.2778545,662.11,660.68,1.09662024]
[1740154568277,0.2778545,662.1,660.68,1.09662024]
[1740154568475,0.2778545,662.09,660.68,1.09662024]
[1740154568680,0.30205092,662.14,660.68,1.09662024]
[1740154568882,0.27785257,662.13,660.68,1.09662024]
[1740154569082,0.30206461,662.11,660.68,1.09662024]
[1740154569281,0.27785257,662.1,660.68,1.09662024]
[1740154569481,0.30207829,662.08,660.68,1.09662024]
[1740154569678,0.27785257,662.07,660.68,1.09662024]
[1740154569876,0.30209198,662.05,660.68,1.09662024]
[1740154570081,0.27785257,662.04,660.48,1.09662024]
[1740154570380,0.30210567,662.02,660.48,1.09662024]
[1740154571080,0.27778496,662.01,660.48,1.09662024]
[1740154571877,0.30210567,662.02,660.48,1.09662024]
[1740154572078,0.27777621,662.01,660.48,1.09662024]
[1740154572585,0.30211936,661.99,660.48,1.09662024]
[1740154572785,0.27777621,661.98,660.48,1.09662024]
[1740154572982,0.30213305,661.96,660.55,1.09662024]
[1740154573179,0.27777621,661.95,660.55,1.09662024]
[1740154573384,1.62677621,661.95,660.55,1.09662024]
[1740154573585,0.30214675,661.93,660.55,1.09662024]
[1740154575086,0.2778364,661.92,660.55,1.09662024]
[1740154575387,0.30216044,661.9,660.55,1.09662024]
[1740154575584,0.2778364,661.89,660.55,1.09662024]
[1740154575885,0.30217414,661.87,660.55,1.09662024]
[1740154576089,0.30217414,661.87,660.35,1.09662024]
[1740154576283,0.2778364,661.86,660.35,1.09662024]
[1740154576586,0.30218783,661.84,660.35,1.09662024]
[1740154576781,0.27784575,661.83,660.35,1.09662024]
[1740154578787,0.27784575,661.83,660.57,1.09662024]
[1740154578987,0.30220153,661.81,660.57,1.09662024]
[1740154579188,0.27784575,661.8,660.57,1.09662024]
[1740154579493,0.30221067,661.79,660.57,1.09662024]
[1740154579791,0.27784575,661.78,660.57,1.09662024]
[1740154579992,0.30222437,661.76,660.57,1.09662024]
[1740154580291,0.27784575,661.75,660.57,1.09662024]
[1740154580492,0.3022335,661.74,660.57,1.09662024]
[1740154580690,0.27784575,661.73,660.57,1.09662024]
[1740154581483,0.3022335,661.74,660.57,1.09662024]
[1740154581991,0.3022335,661.74,660.58,2.04762024]
[1740154584014,0.27785063,661.73,660.58,2.04762024]
[1740154584601,0.27785778,661.72,660.58,2.04762024]
[1740154584800,0.27785778,661.71,660.58,2.04762024]
[1740154585003,0.30225634,661.69,660.58,0.951]
[1740154587496,0.30225634,661.69,660.69,1.09662024]
[1740154589693,0.27783725,661.68,660.69,1.09662024]
[1740154590396,0.27783725,661.68,660.58,0.951]
[1740154590397,0.27783725,661.68,660.68,1.09662024]
[1740154592299,0.30227004,661.66,660.68,1.09662024]
[1740154592499,0.27783725,661.65,660.67,1.09662024]
[1740154592702,0.58011685,661.64,660.67,1.09662024]
[1740154592902,0.30228375,661.63,660.67,1.09662024]
[1740154596405,0.30228375,661.63,661.0,1.09662024]
[1740154598605,0.30228375,661.63,660.59,0.80116738]
[1740154598606,0.30228375,661.63,661.1,1.09662024]
[1740154602318,0.30228375,661.63,660.98,1.09662024]
[1740154603950,0.30228375,661.63,660.99,0.898]
[1740154605421,0.30228375,661.63,661.29,1.09662024]
[1740154607624,0.30228375,661.63,661.27,1.09662024]
[1740154611023,0.30228375,661.63,661.21,1.09662024]
[1740154613922,0.30228375,661.63,661.38,1.09662024]
[1740154617330,0.30228375,661.63,661.0,1.09662024]
[1740154617331,0.30228375,661.63,661.31,1.09662024]
[1740154620231,0.30228375,661.63,661.14,1.09662024]
[1740154623334,0.30228375,661.63,660.29,2.29186833]
[1740154623335,0.30228375,661.63,661.07,1.09662024]
[1740154626436,0.30228375,661.63,661.1,1.09662024]
[1740154629232,0.30228375,661.63,661.03,1.09662024]
[1740154630938,0.27795351,661.62,661.03,1.09662024]
[1740154631140,0.30229289,661.61,661.03,1.09662024]
[1740154631433,0.27795351,661.6,661.03,1.09662024]
[1740154631733,0.30230202,661.59,661.03,1.09662024]
[1740154631937,0.27795351,661.58,661.03,1.09662024]
[1740154632139,0.30231116,661.57,661.03,1.09662024]
[1740154632341,0.30231116,661.57,660.58,1.09662024]
[1740154636241,0.27801485,661.47,660.25,1.09662024]
[1740154636435,0.3023523,661.48,660.25,1.09662024]
[1740154637643,0.3023523,661.48,660.36,1.09662024]
[1740154638343,0.3023523,661.48,660.37,1.57992706]
[1740154641444,0.27799626,661.47,660.37,1.57992706]
[1740154642442,0.27799626,661.47,660.38,1.182]
[1740154644144,0.30236601,661.45,660.38,1.182]
[1740154644340,0.27799626,661.44,660.38,1.182]
[1740154644946,0.30237972,661.42,660.38,1.182]
[1740154645442,0.27813636,661.41,660.38,1.182]
[1740154645843,0.30239344,661.39,660.38,1.182]
[1740154646040,0.27813636,661.38,660.38,1.182]
[1740154648045,0.30240716,661.36,660.38,1.182]
[1740154648246,0.27813636,661.35,660.38,1.182]
[1740154648443,0.27812119,661.34,660.38,1.182]
[1740154648647,0.27812119,661.33,660.38,1.182]
[1740154648843,1.43761996,661.32,660.38,1.182]
[1740154649044,0.30243459,661.3,660.38,1.182]
[1740154649245,0.27812119,661.29,660.38,1.182]
[1740154649449,0.27812119,661.28,660.38,1.182]
[1740154649650,0.27812119,661.27,660.38,1.182]
[1740154649843,0.27812119,661.26,660.38,1.182]
[1740154650244,0.27812119,661.25,660.38,1.182]
[1740154650544,0.30243459,661.3,660.38,1.182]
[1740154650545,0.27812119,661.24,660.38,1.182]
[1740154650749,0.27812119,661.23,660.38,1.182]
[1740154650948,0.27812119,661.22,660.38,1.182]
[1740154651146,0.27812119,661.21,660.38,1.182]
[1740154651350,0.27812119,661.2,660.38,1.182]
[1740154651550,0.30248948,661.18,660.38,1.182]
[1740154651751,0.27812119,661.17,660.38,1.182]
[1740154651950,0.58061982,661.16,660.38,1.182]
[1740154652146,0.5806244,661.15,660.38,1.182]
[1740154652350,0.27812119,661.14,660.38,1.182]
[1740154652549,0.27812119,661.13,660.38,1.182]
[1740154652752,0.27812119,661.12,660.38,1.182]
[1740154653051,0.27812119,661.11,660.38,1.182]
[1740154653452,0.27812119,661.1,660.38,1.182]
[1740154653646,0.27812119,661.09,660.38,1.182]
[1740154653852,0.27812119,661.08,660.38,1.182]
[1740154654148,0.30250321,661.15,660.38,1.182]
[1740154654149,0.27812119,661.07,660.38,1.182]
[1740154654352,0.27812119,661.06,660.38,1.182]
[1740154654546,0.27812119,661.14,660.38,1.182]
[1740154654757,0.30250321,661.15,660.38,1.182]
[1740154654758,0.27812119,661.13,660.38,1.182]
[1740154654952,0.30251694,661.12,660.38,1.182]
[1740154655147,0.27812119,661.11,660.38,1.182]
[1740154656751,0.65517606,662.49,660.38,1.182]
[1740154656752,0.58064728,661.1,660.38,1.182]
[1740154656956,0.58065185,661.09,660.38,1.182]
[1740154657155,0.58065643,661.08,660.38,1.182]
[1740154657456,0.58066101,661.07,660.38,1.182]
[1740154657653,0.27812119,661.06,660.38,1.182]
[1740154657960,0.27812119,661.05,660.38,1.182]
[1740154658155,0.27812119,661.04,660.38,1.182]
[1740154658456,0.27812119,661.03,660.38,1.182]
[1740154658649,0.58068389,661.02,660.38,1.182]
[1740154658848,0.58068847,661.01,660.38,1.182]
[1740154659054,0.58069305,661.0,660.38,1.182]
[1740154659250,0.27812119,660.99,660.38,1.182]
[1740154659650,0.27836587,660.98,660.38,1.182]
[1740154659854,0.27836587,660.97,660.38,1.182]
[1740154660049,0.30259017,660.96,660.38,1.182]
[1740154660255,0.27836587,660.95,660.38,1.182]
[1740154660457,0.27836587,660.95,659.0,1.09662024]
[1740154661151,0.27836587,660.95,659.01,1.58233963]
[1740154662756,0.30259017,660.96,659.02,1.059]
[1740154663060,0.27837574,660.95,659.02,1.059]
[1740154664255,0.30259017,660.96,659.02,1.059]
[1740154664256,0.27837574,660.94,659.02,1.059]
[1740154664459,0.27837574,660.93,659.02,1.059]
[1740154664755,0.27837574,660.92,659.02,1.059]
[1740154664961,0.27837574,660.91,659.02,1.059]
[1740154665159,0.27837574,660.9,659.02,1.059]
[1740154665355,0.27837574,660.89,659.02,1.059]
[1740154665554,0.30263137,660.87,659.02,1.059]
[1740154665958,0.27837574,660.86,659.02,1.059]
[1740154666158,0.2784182,660.85,659.02,1.059]
[1740154666362,0.58106331,660.84,659.02,1.059]
[1740154666558,0.30265427,660.82,659.02,1.059]
[1740154666755,0.2784182,660.81,659.02,1.059]
[1740154666954,0.30266801,660.79,659.02,1.059]
[1740154667158,0.2784182,660.78,659.02,1.059]
[1740154667359,0.30268176,660.76,659.02,1.059]
[1740154667559,0.2784182,660.75,659.02,1.059]
[1740154667757,0.3026955,660.73,659.02,1.059]
[1740154667958,0.2784182,660.72,659.02,1.059]
[1740154668153,0.30270924,660.7,659.02,1.059]
[1740154668358,0.2784182,660.69,659.02,1.059]
[1740154668559,0.30270924,660.7,659.02,1.059]
[1740154668560,0.30272299,660.67,659.02,1.059]
[1740154672162,0.27833068,660.66,659.02,1.059]
[1740154672363,0.30273674,660.64,659.02,1.059]
[1740154672662,0.27833068,660.63,659.02,1.059]
[1740154672964,0.30275048,660.61,659.02,1.36248092]
[1740154673162,0.27833068,660.6,659.02,1.36248092]
[1740154673461,0.30276423,660.58,659.02,1.36248092]
[1740154673661,0.27833068,660.57,659.02,1.36248092]
[1740154673863,0.30277798,660.55,659.02,1.36248092]
[1740154675063,0.30277798,660.55,659.14,1.09662024]
[1740154675263,0.27830789,660.54,659.14,1.09662024]
[1740154675462,0.30278715,660.53,659.14,1.09662024]
[1740154675959,0.27830119,660.52,659.14,1.09662024]
[1740154676156,0.30279632,660.51,659.14,1.09662024]
[1740154676359,0.27830119,660.5,659.14,1.09662024]
[1740154676664,0.30280549,660.49,659.14,1.09662024]
[1740154677360,0.27830943,660.48,659.37,1.09662024]
[1740154677568,0.30281466,660.47,659.37,1.09662024]
[1740154677967,0.27833331,660.46,659.37,1.09662024]
[1740154678865,0.30282841,660.44,659.37,1.09662024]
[1740154679064,0.27833331,660.43,659.37,1.09662024]
[1740154680062,0.30282841,660.44,659.37,1.09662024]
[1740154681266,0.30282841,660.44,659.4,1.09662024]
[1740154684274,0.30282841,660.44,659.07,1.89701223]
[1740154684275,0.30282841,660.44,659.68,1.09662024]
[1740154686779,0.30282841,660.44,659.89,1.09662024]
[1740154687284,0.4541812,661.53,659.89,1.09662024]
[1740154687478,0.30233858,661.51,659.89,1.09662024]
[1740154687677,1.4330043,661.5,659.89,1.09662024]
[1740154687978,0.3023523,661.48,659.89,1.09662024]
[1740154688178,0.27813272,661.47,659.89,1.09662024]
[1740154688379,0.30236601,661.45,659.89,1.09662024]
[1740154688574,0.27813272,661.44,659.89,1.09662024]
[1740154688779,0.30237972,661.42,659.89,1.09662024]
[1740154688981,0.27813272,661.41,659.89,1.09662024]
[1740154689183,0.30239344,661.39,659.89,1.09662024]
[1740154689483,0.27813272,661.38,659.89,1.09662024]
[1740154689683,0.30240716,661.36,660.18,1.09662024]
[1740154689882,0.27813272,661.35,660.18,1.09662024]
[1740154690783,0.30242087,661.33,660.18,1.09662024]
[1740154691181,0.27812538,661.32,660.18,1.09662024]
[1740154691483,0.30243459,661.3,660.18,1.09662024]
[1740154691684,0.27812538,661.29,660.18,1.09662024]
[1740154691879,0.30244831,661.27,660.18,1.09662024]
[1740154692076,0.27812538,661.26,660.18,1.09662024]
[1740154692280,0.30246204,661.24,660.18,1.09662024]
[1740154692484,0.27812538,661.23,659.96,1.09662024]
[1740154693081,0.30247576,661.21,659.96,1.09662024]
[1740154693384,0.27812538,661.2,659.96,1.09662024]
[1740154693577,0.30248948,661.18,659.96,1.09662024]
[1740154693778,0.27812538,661.17,659.96,1.09662024]
[1740154694084,1.50112538,661.17,659.96,1.09662024]
[1740154694379,0.30250321,661.15,659.96,1.09662024]
[1740154696186,0.30250321,661.15,659.97,1.09662024]
[1740154699184,0.30250321,661.15,659.57,1.09662024]
[1740154702380,0.30250321,661.15,660.05,1.09662024]
[1740154704187,0.27803101,661.14,660.05,1.09662024]
[1740154705286,0.30251694,661.12,660.06,0.899]
[1740154705586,0.2780777,661.11,660.06,0.899]
[1740154706382,0.30252609,661.1,660.06,0.899]
[1740154710392,0.30252609,661.1,660.1,1.09662024]
[1740154713386,0.30252609,661.1,660.06,0.899]
[1740154716286,0.30252609,661.1,660.25,1.09662024]
[1740154718894,0.30252609,661.1,660.27,1.09662024]
[1740154719093,1.023,661.24,660.47,1.09662024]
[1740154721994,1.023,661.24,660.67,1.09662024]
[1740154722394,0.89055605,662.47,660.67,1.09662024]
[1740154722591,3.72122183,662.46,660.67,1.09662024]
[1740154722787,0.30191413,662.44,660.67,1.09662024]
[1740154722991,0.27774775,662.43,660.67,1.09662024]
[1740154723187,0.27774775,662.42,660.67,1.09662024]
[1740154723395,0.27774775,662.41,660.67,1.09662024]
[1740154723595,0.27774775,662.4,660.67,1.09662024]
[1740154723895,0.27774775,662.39,660.67,1.09662024]
[1740154724095,0.27774775,662.38,660.67,1.09662024]
[1740154724298,0.27774775,662.37,660.67,1.09662024]
[1740154724594,0.27774775,662.36,660.67,1.09662024]
[1740154724795,0.30191413,662.44,660.67,1.09662024]
[1740154724796,0.27774775,662.35,660.67,1.09662024]
[1740154724997,0.27774775,662.34,660.67,1.09662024]
[1740154725191,0.27774775,662.33,660.67,1.09662024]
[1740154725389,0.27774775,662.32,660.79,1.09662024]
[1740154725594,0.27774775,662.31,660.79,1.09662024]
[1740154725790,0.27774775,662.3,660.79,1.09662024]
[1740154726096,0.30191413,662.44,660.79,1.09662024]
[1740154726297,0.27770393,662.43,660.79,1.09662024]
[1740154726491,0.27770393,662.42,660.79,1.09662024]
[1740154726695,0.30191413,662.44,660.79,1.09662024]
[1740154726696,0.27770393,662.43,660.79,1.09662024]
[1740154726897,0.27770393,662.42,660.79,1.09662024]
[1740154727094,0.27770393,662.43,660.79,1.09662024]
[1740154727298,0.27770393,662.42,660.79,1.09662024]
[1740154727500,0.27770393,662.43,660.79,1.09662024]
[1740154727999,0.27770393,662.43,660.69,1.09662024]
[1740154728606,1.124,662.42,660.69,1.09662024]
[1740154728899,0.27770393,662.41,660.69,1.09662024]
[1740154729296,1.124,662.42,660.69,1.09662024]
[1740154729502,0.27761445,662.41,660.69,1.09662024]
[1740154730597,0.27765729,662.4,660.74,1.09662024]
[1740154730794,0.27765729,662.41,660.74,1.09662024]
[1740154730992,0.27765395,662.4,660.74,1.09662024]
[1740154731200,0.27765395,662.39,660.74,1.09662024]
[1740154731400,0.27765395,662.38,660.74,1.09662024]
[1740154731600,0.27765395,662.37,660.74,1.09662024]
[1740154731797,0.27765395,662.41,660.74,1.09662024]
[1740154731994,0.27765395,662.4,660.74,1.09662024]
[1740154732196,0.27765395,662.39,660.74,1.09662024]
[1740154732397,0.27765395,662.41,660.74,1.09662024]
[1740154732594,0.27765395,662.4,660.74,1.09662024]
[1740154732798,0.27765395,662.41,660.74,1.09662024]
[1740154732993,0.27765395,662.4,660.74,1.09662024]
[1740154733201,0.27765395,662.39,660.74,1.09662024]
[1740154733501,0.27765395,662.38,660.74,1.09662024]
[1740154733697,0.27765395,662.37,660.74,1.09662024]
[1740154733995,0.27765395,662.36,660.74,1.09662024]
[1740154734203,1.124,662.42,660.25,0.79193751]
[1740154734204,0.27765395,662.41,660.72,1.09662024]
[1740154734401,0.27765395,662.4,660.72,1.09662024]
[1740154734601,0.27765395,662.39,660.72,1.09662024]
[1740154734802,0.27765395,662.38,660.72,1.09662024]
[1740154735096,0.27765395,662.37,660.72,1.09662024]
[1740154735301,1.124,662.42,660.72,1.09662024]
[1740154735502,0.27769383,662.41,660.72,1.09662024]
[1740154735703,1.124,662.42,660.72,1.09662024]
[1740154736004,0.27770253,662.41,660.72,1.09662024]
[1740154736201,0.27770253,662.4,660.72,1.09662024]
[1740154736402,0.27770253,662.39,660.72,1.09662024]
[1740154736602,1.124,662.42,660.72,1.09662024]
[1740154736603,0.27770253,662.38,660.72,1.09662024]
[1740154736802,0.27770253,662.37,660.66,1.09662024]
[1740154736997,0.27770253,662.36,660.66,1.09662024]
[1740154737197,0.27770253,662.35,660.66,1.09662024]
[1740154737404,0.27770253,662.34,660.66,1.09662024]
[1740154737605,0.27770253,662.33,660.66,1.09662024]
[1740154737903,0.27770253,662.32,660.66,1.09662024]
[1740154738105,0.27770253,662.31,660.66,1.09662024]
[1740154738303,0.27770253,662.3,660.66,1.09662024]
[1740154738501,0.27770253,662.29,660.66,1.09662024]
[1740154738704,0.27770253,662.28,660.66,1.09662024]
[1740154738900,0.27770253,662.27,660.67,1.09662024]
[1740154739105,0.27770253,662.26,660.67,1.09662024]
[1740154739300,0.27770253,662.25,660.67,1.09662024]
[1740154739501,0.27770253,662.24,660.67,1.09662024]
[1740154739701,1.124,662.42,660.67,1.09662024]
[1740154739702,0.27770253,662.23,660.67,1.09662024]
[1740154739903,0.27770253,662.22,660.67,1.09662024]
[1740154740107,0.27770253,662.21,660.25,0.79193751]
[1740154740308,0.27770253,662.41,660.25,0.79193751]
[1740154740509,0.27769107,662.4,660.25,0.79193751]
[1740154740807,0.27769107,662.39,660.25,0.79193751]
[1740154741003,0.27769107,662.41,660.25,0.79193751]
[1740154741208,0.27769107,662.4,660.25,0.79193751]
[1740154741409,1.124,662.42,660.25,0.79193751]
[1740154741410,0.27769107,662.41,660.25,0.79193751]
[1740154741610,0.27769107,662.4,660.25,0.79193751]
[1740154741810,0.27769107,662.41,660.25,0.79193751]
[1740154742005,0.27769107,662.4,660.25,0.79193751]
[1740154742202,0.27769107,662.39,660.25,0.79193751]
[1740154742410,0.27769107,662.38,660.25,0.79193751]
[1740154742604,0.27769107,662.37,660.25,0.79193751]
[1740154742806,0.27769107,662.41,660.25,0.79193751]
[1740154743009,0.27769107,662.4,660.25,0.79193751]
[1740154743212,0.27769107,662.39,660.25,0.79193751]
[1740154743410,0.27769107,662.41,660.25,0.79193751]
[1740154743610,0.27769107,662.4,660.25,0.79193751]
[1740154743810,0.27769107,662.41,660.25,0.79193751]
[1740154744106,0.27769107,662.4,660.25,0.79193751]
[1740154744307,0.27769107,662.41,660.25,0.79193751]
[1740154744510,0.27769107,662.4,660.25,0.79193751]
[1740154744711,0.27769107,662.41,660.25,0.79193751]
[1740154744912,0.27769107,662.4,660.74,1.10150337]
[1740154745206,0.27769107,662.39,660.74,1.10150337]
[1740154745513,0.27769107,662.38,660.74,1.10150337]
[1740154745712,0.27762011,662.37,660.74,1.10150337]
[1740154745909,0.30191413,662.44,660.74,1.10150337]
[1740154745910,0.27762011,662.36,660.74,1.10150337]
[1740154746108,0.27762011,662.35,660.74,1.10150337]
[1740154746307,0.30196427,662.33,660.74,1.10150337]
[1740154746613,0.27762011,662.32,660.74,1.10150337]
[1740154747821,0.30197795,662.3,661.04,1.10150337]
[1740154748116,0.27762011,662.29,661.04,1.10150337]
[1740154748416,0.27762011,662.28,661.04,1.10150337]
[1740154748611,0.27762011,662.27,661.04,1.10150337]
[1740154748812,0.27762011,662.26,661.04,1.10150337]
[1740154749012,0.27762011,662.29,661.04,1.10150337]
[1740154749208,0.27762011,662.28,661.04,1.10150337]
[1740154749615,0.27762011,662.27,661.04,1.10150337]
[1740154749915,0.27762011,662.26,661.04,1.10150337]
[1740154750214,0.27762011,662.25,661.04,1.10150337]
[1740154750413,0.27762011,662.29,661.04,1.10150337]
[1740154750614,0.27762011,662.28,661.04,1.10150337]
[1740154750816,0.27762011,662.27,660.89,1.10150337]
[1740154751016,0.27772686,662.26,660.89,1.10150337]
[1740154751217,0.27772686,662.25,660.89,1.10150337]
[1740154751413,0.27772686,662.29,660.89,1.10150337]
[1740154751613,0.27772686,662.28,660.89,1.10150337]
[1740154751814,0.30199619,662.26,660.89,1.10150337]
[1740154752025,0.27772686,662.25,660.89,1.10150337]
[1740154752513,0.30200987,662.23,660.89,1.10150337]
[1740154752718,0.27772686,662.22,660.89,1.10150337]
[1740154752918,0.30202355,662.2,660.89,1.10150337]
[1740154753115,0.27772686,662.19,660.89,1.10150337]
[1740154753312,0.27772686,662.19,661.01,1.10150337]
[1740154754220,0.27772878,662.18,661.01,1.10150337]
[1740154754414,0.27772878,662.17,661.01,1.10150337]
[1740154754621,0.27772878,662.16,661.01,1.10150337]
[1740154754816,0.27772878,662.15,661.01,1.10150337]
[1740154755017,0.27772878,662.14,661.01,1.10150337]
[1740154755219,0.27772878,662.13,661.01,1.10150337]
[1740154755419,0.27772878,662.19,661.01,1.10150337]
[1740154755620,0.27772878,662.18,661.01,1.10150337]
[1740154755822,0.27772878,662.19,661.06,1.10150337]
[1740154756024,0.27772878,662.18,661.06,1.10150337]
[1740154756219,0.3020418,662.16,661.06,1.10150337]
[1740154756419,0.27772878,662.15,661.06,1.10150337]
[1740154756721,0.30205548,662.13,661.06,1.10150337]
[1740154756922,0.27772878,662.12,661.06,1.10150337]
[1740154757316,0.30205548,662.13,661.06,1.10150337]
[1740154757522,0.27772526,662.12,661.06,1.10150337]
[1740154758723,0.30206917,662.1,661.32,1.10150337]
[1740154759023,0.27772526,662.09,661.32,1.10150337]
[1740154759223,0.30207829,662.08,661.32,1.10150337]
[1740154759424,0.27772526,662.07,661.32,1.10150337]
[1740154759619,0.30208742,662.06,661.32,1.10150337]
[1740154759824,0.27772526,662.05,661.32,1.10150337]
[1740154760024,0.30209655,662.04,661.32,1.10150337]
[1740154762028,0.30209655,662.04,661.23,1.10150337]
[1740154764631,0.30209655,662.04,660.57,1.57844605]
[1740154764632,0.30209655,662.04,661.57,1.10150337]
[1740154767137,0.30209655,662.04,661.47,1.10150337]
[1740154767737,0.27770161,662.03,661.47,1.10150337]
[1740154768133,0.30209655,662.04,661.47,1.10150337]
[1740154769634,0.27771947,662.03,661.47,1.10150337]
[1740154769838,0.27771947,662.03,660.65,2.24890273]
[1740154769839,0.27771947,662.03,661.42,1.10150337]
[1740154770637,0.30209655,662.04,661.42,1.10150337]
[1740154771834,0.27774905,662.03,661.42,1.10150337]
[1740154772040,0.30210567,662.02,661.42,1.10150337]
[1740154772239,0.27774905,662.01,661.42,1.10150337]
[1740154772942,0.27774905,662.01,661.28,1.10150337]
[1740154773941,0.27774905,662.0,661.28,1.10150337]
[1740154774135,0.27774905,661.99,661.28,1.10150337]
[1740154774340,0.27774905,661.98,661.28,1.10150337]
[1740154774541,0.27774905,661.97,661.28,1.10150337]
[1740154774741,0.30210567,662.02,661.28,1.10150337]
[1740154774742,0.27791894,661.96,661.28,1.10150337]
[1740154775041,0.27791894,661.95,661.28,1.10150337]
[1740154775241,0.27791894,661.94,661.28,1.10150337]
[1740154775437,0.27791894,661.93,661.28,1.10150337]
[1740154775636,0.27791894,661.92,661.28,1.10150337]
[1740154775836,0.27791894,661.91,661.28,1.10150337]
[1740154776045,0.27791894,661.91,660.55,2.24890273]
[1740154776046,0.58007938,661.9,660.88,1.10150337]
[1740154776341,0.27793206,661.89,660.88,1.10150337]
[1740154776540,0.27793206,661.88,660.88,1.10150337]
[1740154776741,0.30216044,661.9,660.88,1.10150337]
[1740154776742,0.27793206,661.87,660.88,1.10150337]
[1740154776938,0.27793206,661.89,660.88,1.10150337]
[1740154777139,0.27793206,661.88,660.88,1.10150337]